fUST/lending_fUST_20260506
["ID","MTS","AMOUNT","RATE_DAILY","PERIOD"]
[421629713,1777999330000,5000.0,8.01e-05,2]
[421629715,1777999352000,5000.0,8.01e-05,2]
[421629716,1777999374000,5000.0,8.01e-05,2]
[421629717,1777999396000,5000.0,8.01e-05,2]
[421629718,1777999419000,5000.0,8.01e-05,2]
[421629719,1777999441000,5000.0,8.01e-05,2]
[421629731,1777999608000,151.0,7.927e-05,2]
[421629772,1777999729000,151.0,7.847e-05,2]
[421629795,1777999820000,158.57280955,7.944e-05,2]
[421629921,1777999832000,-10295.14287973,0.00010463,2]
[421629917,1777999832000,-8502.8982397,0.00010263,2]
[421629925,1777999832000,-151.0,0.00010922,2]
[421629930,1777999832000,-152.0,0.00011576,30]
[421629926,1777999832000,-151.0,0.00011004,2]
[421629915,1777999832000,-458.41100599,0.00010172,2]
[421629913,1777999832000,-4422.63416745,0.00010163,2]
[421629896,1777999832000,-300.0,8.359e-05,2]
[421629907,1777999832000,-151.0,8.803e-05,2]
[421629890,1777999832000,-300.0,8.359e-05,2]
[421629894,1777999832000,-300.0,8.359e-05,2]
[421629892,1777999832000,-300.0,8.359e-05,2]
[421629919,1777999832000,-9547.01051954,0.00010363,2]
[421629911,1777999832000,-152.0,8.921e-05,7]
[421629886,1777999832000,-300.0,8.359e-05,2]
[421629905,1777999832000,-300.0,8.359e-05,2]
[421629901,1777999832000,-300.0,8.359e-05,2]
[421629903,1777999832000,-300.0,8.359e-05,2]
[421629900,1777999832000,-300.0,8.359e-05,2]
[421629898,1777999832000,-300.0,8.359e-05,2]
[421629888,1777999832000,-300.0,8.359e-05,2]
[421629884,1777999832000,-300.0,8.359e-05,2]
[421629882,1777999832000,-300.0,8.359e-05,2]
[421629880,1777999832000,-300.0,8.359e-05,2]
[421629873,1777999832000,-388.48390338,8.172e-05,2]
[421629871,1777999832000,-534.0,8.09e-05,2]
[421629869,1777999832000,-5000.0,8.09e-05,2]
[421629878,1777999832000,-300.0,8.359e-05,2]
[421629923,1777999832000,-295.97991975,0.00010463,2]
[421629909,1777999832000,-152.0,8.921e-05,7]
[421629932,1777999832000,-1195.16396275,0.0001161,2]
[421629951,1777999832000,-388.39489209,0.00011611,2]
[421629934,1777999832000,-4081.83603725,0.0001161,2]
[421629928,1777999832000,-151.0,0.00011032,2]
[421629989,1777999832000,-500.0,0.00011611,2]
[421629988,1777999832000,-500.0,0.00011611,2]
[421629982,1777999832000,-211.98302034,0.00011611,2]
[421629991,1777999832000,-550.0,0.00011611,2]
[421629980,1777999832000,-500.0,0.00011611,2]
[421629984,1777999832000,-384.07589576,0.00011611,2]
[421629986,1777999832000,-500.0,0.00011611,2]
[421629969,1777999832000,-500.0,0.00011611,2]
[421629976,1777999832000,-500.0,0.00011611,2]
[421629974,1777999832000,-500.0,0.00011611,2]
[421629978,1777999832000,-500.0,0.00011611,2]
[421629973,1777999832000,-451.52738957,0.00011611,2]
[421629963,1777999832000,-500.0,0.00011611,2]
[421629961,1777999832000,-500.0,0.00011611,2]
[421629971,1777999832000,-500.0,0.00011611,2]
[421629967,1777999832000,-500.0,0.00011611,2]
[421629936,1777999832000,-500.0,0.00011611,2]
[421629938,1777999832000,-514.50852514,0.00011611,2]
[421629942,1777999832000,-500.0,0.00011611,2]
[421629940,1777999832000,-500.0,0.00011611,2]
[421629993,1777999832000,-136804.23401225,0.00011612,2]
[421629965,1777999832000,-500.0,0.00011611,2]
[421629945,1777999832000,-500.0,0.00011611,2]
[421629955,1777999832000,-500.0,0.00011611,2]
[421629953,1777999832000,-500.0,0.00011611,2]
[421629957,1777999832000,-500.0,0.00011611,2]
[421629947,1777999832000,-500.0,0.00011611,2]
[421629949,1777999832000,-500.0,0.00011611,2]
[421629959,1777999832000,-500.0,0.00011611,2]
[421629943,1777999832000,-500.0,0.00011611,2]
[421630030,1777999838000,-675479.87080167,0.00011612,2]
[421630031,1777999838000,-1559.0,0.0001162,2]
[421630032,1777999838000,-143699.36566669,0.00011688,2]
[421630034,1777999838000,-537.6845,0.00011705,2]
[421630035,1777999838000,-537.6845,0.00011705,2]
[421630033,1777999838000,-445.202766,0.00011705,2]
[421630040,1777999838000,-4903.56216547,0.0001176,2]
[421630036,1777999838000,-46090.21409045,0.00011712,2]
[421630042,1777999838000,-521.76121432,0.00011789,2]
[421630045,1777999838000,-1622.77,0.00011789,2]
[421630046,1777999838000,-702.92809708,0.00011789,2]
[421630047,1777999838000,-44.44774379,0.00011789,2]
[421630038,1777999838000,-557.5788265,0.0001176,2]
[421630122,1777999840000,-394.65,0.00011789,2]
[421630116,1777999840000,-1788.92292671,0.00011789,2]
[421630441,1777999843000,-1930.04165381,0.00011789,2]
[421630588,1777999847000,-5596.86798474,0.00011789,2]
[421630572,1777999847000,-5479.61649223,0.0001152,2]
[421630576,1777999847000,-685.55949103,0.00011789,2]
[421630573,1777999847000,-3677.24311755,0.00011671,2]
[421630862,1778000454000,-665.0,8.306e-05,2]
[421630897,1778000864000,3677.24311755,8.01e-05,2]
[421631188,1778001038000,-2351.0,0.00010045,2]
[421631175,1778001038000,-200.0,8.684e-05,2]
[421631185,1778001038000,-720.0,9.315e-05,2]
[421631184,1778001038000,-364.0,9.132e-05,2]
[421631170,1778001038000,-300.0,8.303e-05,2]
[421631173,1778001038000,-600.0,8.468e-05,2]
[421631181,1778001038000,-1680.0,9.132e-05,2]
[421631157,1778001038000,-300.0,8.303e-05,2]
[421631171,1778001038000,-6308.34319775,8.303e-05,2]
[421631178,1778001038000,-200.0,8.684e-05,7]
[421631168,1778001038000,-300.0,8.303e-05,2]
[421631191,1778001038000,-864.0,0.00010246,2]
[421631189,1778001038000,-462.17874187,0.00010141,2]
[421631159,1778001038000,-300.0,8.303e-05,2]
[421631153,1778001038000,-300.0,8.303e-05,2]
[421631166,1778001038000,-300.0,8.303e-05,2]
[421631162,1778001038000,-300.0,8.303e-05,2]
[421631164,1778001038000,-300.0,8.303e-05,2]
[421631149,1778001038000,-300.0,8.303e-05,2]
[421631151,1778001038000,-300.0,8.303e-05,2]
[421631147,1778001038000,-300.0,8.303e-05,2]
[421631143,1778001038000,-300.0,8.303e-05,2]
[421631145,1778001038000,-300.0,8.303e-05,2]
[421631141,1778001038000,-300.0,8.303e-05,2]
[421631134,1778001038000,-391.67689989,8.141e-05,2]
[421631140,1778001038000,-300.0,8.302e-05,2]
[421631132,1778001038000,-534.0,8.14e-05,2]
[421631136,1778001038000,-300.0,8.302e-05,2]
[421631138,1778001038000,-1200.0,8.302e-05,2]
[421631155,1778001038000,-300.0,8.303e-05,2]
[421631193,1778001038000,-151.0,0.00010989,2]
[421631179,1778001038000,-151.0,8.791e-05,2]
[421631212,1778001038000,-1435.583,0.00011492,2]
[421631204,1778001038000,-1878.6294473,0.00011126,2]
[421631253,1778001038000,-151.0,0.00011789,2]
[421631254,1778001038000,-151.0,0.00011789,2]
[421631246,1778001038000,-197.0,0.0001178,2]
[421631255,1778001038000,-151.0,0.00011789,2]
[421631245,1778001038000,-151.5,0.0001178,2]
[421631256,1778001038000,-151.0,0.00011789,2]
[421631242,1778001038000,-151.5,0.0001178,2]
[421631239,1778001038000,-578.20924308,0.00011758,2]
[421631237,1778001038000,-557.5788265,0.00011703,2]
[421631229,1778001038000,-500.0,0.00011547,2]
[421631235,1778001038000,-367.46489904,0.00011648,2]
[421631219,1778001038000,-16928.60474674,0.00011545,2]
[421631225,1778001038000,-949.1531037,0.00011547,2]
[421631227,1778001038000,-685.5594912,0.00011547,2]
[421631248,1778001038000,-242.042,0.00011782,2]
[421631223,1778001038000,-4140.0836247,0.00011545,2]
[421631221,1778001038000,-2642.30341106,0.00011545,2]
[421631201,1778001038000,-1887.94809824,0.00011126,2]
[421631203,1778001038000,-470.12748931,0.00011126,2]
[421631206,1778001038000,-1000.0,0.00011271,2]
[421631197,1778001038000,-1891.0,0.0001105,2]
[421631208,1778001038000,-151.4811645,0.00011436,2]
[421631195,1778001038000,-151.0,0.00010989,2]
[421631213,1778001038000,-442.0,0.00011492,2]
[421631233,1778001038000,-445.202766,0.00011648,2]
[421631210,1778001038000,-646.0,0.00011492,2]
[421631199,1778001038000,-472.45948404,0.00011126,2]
[421631215,1778001038000,-739.0,0.00011492,2]
[421631217,1778001038000,-185.0,0.00011492,2]
[421631231,1778001038000,-537.6845,0.00011648,2]
[421631288,1778001039000,-1559.0,0.00012168,2]
[421631300,1778001039000,-500.0,0.00012327,2]
[421631289,1778001039000,-461.67526834,0.00012196,2]
[421631292,1778001039000,-164.5562762,0.00012228,2]
[421631290,1778001039000,-200.0,0.00012202,2]
[421631293,1778001039000,-242.042,0.00012327,2]
[421631296,1778001039000,-500.0,0.00012327,2]
[421631297,1778001039000,-556.7856988,0.00012327,2]
[421631294,1778001039000,-276.34174056,0.00012327,2]
[421631298,1778001039000,-500.0,0.00012327,2]
[421631299,1778001039000,-500.0,0.00012327,2]
[421631291,1778001039000,-164.5562762,0.00012227,2]
[421631308,1778001039000,-500.0,0.00012327,2]
[421631302,1778001039000,-500.0,0.00012327,2]
[421631303,1778001039000,-500.0,0.00012327,2]
[421631304,1778001039000,-500.0,0.00012327,2]
[421631305,1778001039000,-218.23551447,0.00012327,2]
[421631307,1778001039000,-500.0,0.00012327,2]
[421631314,1778001039000,-616.85581093,0.00012327,2]
[421631306,1778001039000,-500.0,0.00012327,2]
[421631310,1778001039000,-500.0,0.00012327,2]
[421631311,1778001039000,-500.0,0.00012327,2]
[421631313,1778001039000,-500.0,0.00012327,2]
[421631317,1778001039000,-500.0,0.00012327,2]
[421631287,1778001039000,-341.0,0.00012164,2]
[421631295,1778001039000,-500.0,0.00012327,2]
[421631284,1778001039000,-341.0,0.00012164,2]
[421631269,1778001039000,-161.56332863,0.00011961,2]
[421631285,1778001039000,-341.0,0.00012164,2]
[421631257,1778001039000,-200.0,0.00011796,2]
[421631258,1778001039000,-200.0,0.00011796,2]
[421631260,1778001039000,-599.60298507,0.00011813,2]
[421631259,1778001039000,-200.0,0.00011796,2]
[421631261,1778001039000,-500.0,0.00011821,2]
[421631262,1778001039000,-151.055,0.00011864,2]
[421631267,1778001039000,-160.0,0.00011961,2]
[421631263,1778001039000,-621.78829552,0.00011868,2]
[421631264,1778001039000,-1559.0,0.00011894,2]
[421631265,1778001039000,-644.79446246,0.00011923,2]
[421631266,1778001039000,-160.0,0.00011961,2]
[421631268,1778001039000,-160.0,0.00011961,2]
[421631281,1778001039000,-532.68058384,0.00012141,2]
[421631309,1778001039000,-500.0,0.00012327,2]
[421631270,1778001039000,-668.65185757,0.00011978,2]
[421631280,1778001039000,-1559.0,0.0001213,2]
[421631272,1778001039000,-693.3919763,0.00012033,2]
[421631271,1778001039000,-269.322,0.00012,2]
[421631278,1778001039000,-500.0,0.00012095,2]
[421631279,1778001039000,-792.0,0.000121,2]
[421631275,1778001039000,-341.0,0.00012058,2]
[421631276,1778001039000,-945.04097584,0.00012081,2]
[421631274,1778001039000,-341.0,0.00012058,2]
[421631277,1778001039000,-719.04747942,0.00012088,2]
[421631273,1778001039000,-341.0,0.00012058,2]
[421631283,1778001039000,-341.0,0.00012164,2]
[421631282,1778001039000,-423.63027856,0.00012143,2]
[421631286,1778001039000,-341.0,0.00012164,2]
[421631315,1778001039000,-500.0,0.00012327,2]
[421631301,1778001039000,-275.78794122,0.00012327,2]
[421631312,1778001039000,-500.0,0.00012327,2]
[421631348,1778001039000,-500.0,0.00012328,2]
[421631347,1778001039000,-6595.01937019,0.00012328,2]
[421631351,1778001039000,-500.0,0.00012328,2]
[421631352,1778001039000,-505.64567758,0.00012328,2]
[421631350,1778001039000,-500.0,0.00012328,2]
[421631358,1778001039000,-500.0,0.00012328,2]
[421631361,1778001039000,-500.0,0.00012328,2]
[421631355,1778001039000,-500.0,0.00012328,2]
[421631364,1778001039000,-500.0,0.00012328,2]
[421631359,1778001039000,-550.01,0.00012328,2]
[421631356,1778001039000,-500.0,0.00012328,2]
[421631362,1778001039000,-500.0,0.00012328,2]
[421631346,1778001039000,-500.0,0.00012328,2]
[421631365,1778001039000,-500.0,0.00012328,2]
[421631357,1778001039000,-500.0,0.00012328,2]
[421631363,1778001039000,-500.0,0.00012328,2]
[421631366,1778001039000,-500.0,0.00012328,2]
[421631367,1778001039000,-500.0,0.00012328,2]
[421631374,1778001039000,-500.0,0.00012328,2]
[421631368,1778001039000,-500.0,0.00012328,2]
[421631373,1778001039000,-500.0,0.00012328,2]
[421631369,1778001039000,-500.0,0.00012328,2]
[421631371,1778001039000,-664.64,0.00012328,2]
[421631372,1778001039000,-500.0,0.00012328,2]
[421631370,1778001039000,-500.0,0.00012328,2]
[421631316,1778001039000,-500.0,0.00012327,2]
[421631354,1778001039000,-500.0,0.00012328,2]
[421631349,1778001039000,-500.0,0.00012328,2]
[421631360,1778001039000,-798.52,0.00012328,2]
[421631342,1778001039000,-426.00652116,0.00012328,2]
[421631344,1778001039000,-500.0,0.00012328,2]
[421631329,1778001039000,-500.0,0.00012327,2]
[421631318,1778001039000,-500.0,0.00012327,2]
[421631322,1778001039000,-500.0,0.00012327,2]
[421631321,1778001039000,-165.6484655,0.00012327,2]
[421631320,1778001039000,-450.92637929,0.00012327,2]
[421631323,1778001039000,-500.0,0.00012327,2]
[421631327,1778001039000,-500.0,0.00012327,2]
[421631325,1778001039000,-500.0,0.00012327,2]
[421631324,1778001039000,-192.644739,0.00012327,2]
[421631326,1778001039000,-500.0,0.00012327,2]
[421631328,1778001039000,-500.0,0.00012327,2]
[421631331,1778001039000,-2851.7423,0.00012328,2]
[421631336,1778001039000,-2931.11972009,0.00012328,2]
[421631319,1778001039000,-500.0,0.00012327,2]
[421631345,1778001039000,-500.0,0.00012328,2]
[421631340,1778001039000,-5210.87950238,0.00012328,2]
[421631353,1778001039000,-2729.45,0.00012328,2]
[421631343,1778001039000,-500.0,0.00012328,2]
[421631339,1778001039000,-366.601511,0.00012328,2]
[421631335,1778001039000,-2035.49980562,0.00012328,2]
[421631333,1778001039000,-732.77993002,0.00012328,2]
[421631330,1778001039000,-2851.7423,0.00012328,2]
[421631341,1778001039000,-500.0,0.00012328,2]
[421631337,1778001039000,-415.63943244,0.00012328,2]
[421631338,1778001039000,-3989.57961901,0.00012328,2]
[421631334,1778001039000,-1302.71987559,0.00012328,2]
[421631332,1778001039000,-407.09996112,0.00012328,2]
[421631413,1778001040000,-500.0,0.00012328,2]
[421631415,1778001040000,-500.0,0.00012328,2]
[421631423,1778001040000,-500.0,0.00012328,2]
[421631411,1778001040000,-9851.81905918,0.00012328,2]
[421631419,1778001040000,-501.37275543,0.00012328,2]
[421631417,1778001040000,-500.0,0.00012328,2]
[421631425,1778001040000,-627.61,0.00012328,2]
[421631421,1778001040000,-1293.99,0.00012328,2]
[421631405,1778001040000,-500.0,0.00012328,2]
[421631407,1778001040000,-515.68911271,0.00012328,2]
[421631436,1778001040000,-500.0,0.00012328,2]
[421631409,1778001040000,-8141.99922246,0.00012328,2]
[421631439,1778001040000,-500.0,0.00012328,2]
[421631431,1778001040000,-589.38,0.00012328,2]
[421631445,1778001040000,-500.0,0.00012328,2]
[421631443,1778001040000,-500.0,0.00012328,2]
[421631429,1778001040000,-500.0,0.00012328,2]
[421631427,1778001040000,-500.0,0.00012328,2]
[421631441,1778001040000,-500.0,0.00012328,2]
[421631449,1778001040000,-500.0,0.00012328,2]
[421631433,1778001040000,-500.0,0.00012328,2]
[421631447,1778001040000,-500.0,0.00012328,2]
[421631450,1778001040000,-500.0,0.00012328,2]
[421631454,1778001040000,-525.01,0.00012328,2]
[421631452,1778001040000,-500.0,0.00012328,2]
[421631464,1778001040000,-500.0,0.00012328,2]
[421631437,1778001040000,-500.0,0.00012328,2]
[421631406,1778001040000,-500.0,0.00012328,2]
[421631459,1778001040000,-697.83,0.00012328,2]
[421631400,1778001040000,-500.0,0.00012328,2]
[421631377,1778001040000,-618.02,0.00012328,2]
[421631378,1778001040000,-500.0,0.00012328,2]
[421631376,1778001040000,-500.0,0.00012328,2]
[421631375,1778001040000,-500.0,0.00012328,2]
[421631380,1778001040000,-500.0,0.00012328,2]
[421631390,1778001040000,-501.0452478,0.00012328,2]
[421631381,1778001040000,-500.0,0.00012328,2]
[421631385,1778001040000,-500.0,0.00012328,2]
[421631391,1778001040000,-500.0,0.00012328,2]
[421631382,1778001040000,-500.0,0.00012328,2]
[421631379,1778001040000,-500.0,0.00012328,2]
[421631383,1778001040000,-500.0,0.00012328,2]
[421631389,1778001040000,-1175.68,0.00012328,2]
[421631386,1778001040000,-500.0,0.00012328,2]
[421631387,1778001040000,-500.0,0.00012328,2]
[421631388,1778001040000,-500.0,0.00012328,2]
[421631393,1778001040000,-396.88701708,0.00012328,2]
[421631403,1778001040000,-500.0,0.00012328,2]
[421631404,1778001040000,-500.0,0.00012328,2]
[421631392,1778001040000,-781.35,0.00012328,2]
[421631394,1778001040000,-500.0,0.00012328,2]
[421631395,1778001040000,-500.0,0.00012328,2]
[421631396,1778001040000,-500.0,0.00012328,2]
[421631399,1778001040000,-520.71,0.00012328,2]
[421631397,1778001040000,-500.0,0.00012328,2]
[421631401,1778001040000,-500.0,0.00012328,2]
[421631398,1778001040000,-502.58,0.00012328,2]
[421631402,1778001040000,-500.0,0.00012328,2]
[421631462,1778001040000,-500.0,0.00012328,2]
[421631497,1778001040000,-500.0,0.00012328,2]
[421631457,1778001040000,-500.0,0.00012328,2]
[421631488,1778001040000,-500.0,0.00012328,2]
[421631492,1778001040000,-500.0,0.00012328,2]
[421631495,1778001040000,-500.0,0.00012328,2]
[421631491,1778001040000,-959.32,0.00012328,2]
[421631490,1778001040000,-500.0,0.00012328,2]
[421631493,1778001040000,-500.0,0.00012328,2]
[421631494,1778001040000,-500.0,0.00012328,2]
[421631500,1778001040000,-500.0,0.00012328,2]
[421631510,1778001040000,-500.0,0.00012328,2]
[421631511,1778001040000,-500.0,0.00012328,2]
[421631499,1778001040000,-500.0,0.00012328,2]
[421631501,1778001040000,-208.65566608,0.00012328,2]
[421631504,1778001040000,-500.0,0.00012328,2]
[421631508,1778001040000,-500.0,0.00012328,2]
[421631509,1778001040000,-938.09,0.00012328,2]
[421631502,1778001040000,-500.0,0.00012328,2]
[421631507,1778001040000,-500.0,0.00012328,2]
[421631503,1778001040000,-500.0,0.00012328,2]
[421631506,1778001040000,-500.0,0.00012328,2]
[421631505,1778001040000,-500.0,0.00012328,2]
[421631513,1778001040000,-500.0,0.00012328,2]
[421631512,1778001040000,-520.35845766,0.00012328,2]
[421631515,1778001040000,-500.0,0.00012328,2]
[421631514,1778001040000,-500.0,0.00012328,2]
[421631517,1778001040000,-167.055944,0.00012328,2]
[421631519,1778001040000,-524.92070681,0.00012328,2]
[421631518,1778001040000,-500.0,0.00012328,2]
[421631516,1778001040000,-500.0,0.00012328,2]
[421631489,1778001040000,-500.0,0.00012328,2]
[421631458,1778001040000,-500.0,0.00012328,2]
[421631487,1778001040000,-159.14672055,0.00012328,2]
[421631496,1778001040000,-500.0,0.00012328,2]
[421631455,1778001040000,-630.19,0.00012328,2]
[421631463,1778001040000,-283.28258428,0.00012328,2]
[421631460,1778001040000,-693.27,0.00012328,2]
[421631461,1778001040000,-500.0,0.00012328,2]
[421631466,1778001040000,-500.0,0.00012328,2]
[421631467,1778001040000,-1861.94,0.00012328,2]
[421631465,1778001040000,-500.0,0.00012328,2]
[421631468,1778001040000,-500.0,0.00012328,2]
[421631469,1778001040000,-500.0,0.00012328,2]
[421631472,1778001040000,-500.0,0.00012328,2]
[421631482,1778001040000,-500.0,0.00012328,2]
[421631483,1778001040000,-500.0,0.00012328,2]
[421631470,1778001040000,-500.0,0.00012328,2]
[421631471,1778001040000,-500.0,0.00012328,2]
[421631484,1778001040000,-500.0,0.00012328,2]
[421631485,1778001040000,-500.0,0.00012328,2]
[421631486,1778001040000,-500.0,0.00012328,2]
[421631481,1778001040000,-500.0,0.00012328,2]
[421631478,1778001040000,-500.0,0.00012328,2]
[421631480,1778001040000,-500.0,0.00012328,2]
[421631479,1778001040000,-500.0,0.00012328,2]
[421631498,1778001040000,-222.72822353,0.00012328,2]
[421631475,1778001040000,-500.0,0.00012328,2]
[421631476,1778001040000,-500.0,0.00012328,2]
[421631474,1778001040000,-500.0,0.00012328,2]
[421631473,1778001040000,-2118.46,0.00012328,2]
[421631477,1778001040000,-500.0,0.00012328,2]
[421631562,1778001041000,-500.0,0.00012328,2]
[421631556,1778001041000,-916.35,0.00012328,2]
[421631557,1778001041000,-500.0,0.00012328,2]
[421631558,1778001041000,-500.0,0.00012328,2]
[421631561,1778001041000,-500.0,0.00012328,2]
[421631549,1778001041000,-500.0,0.00012328,2]
[421631566,1778001041000,-500.0,0.00012328,2]
[421631567,1778001041000,-500.0,0.00012328,2]
[421631555,1778001041000,-500.0,0.00012328,2]
[421631551,1778001041000,-500.0,0.00012328,2]
[421631554,1778001041000,-500.0,0.00012328,2]
[421631565,1778001041000,-500.0,0.00012328,2]
[421631560,1778001041000,-500.0,0.00012328,2]
[421631585,1778001041000,-500.0,0.00012328,2]
[421631564,1778001041000,-500.0,0.00012328,2]
[421631563,1778001041000,-500.0,0.00012328,2]
[421631568,1778001041000,-678.73,0.00012328,2]
[421631570,1778001041000,-500.0,0.00012328,2]
[421631572,1778001041000,-500.0,0.00012328,2]
[421631569,1778001041000,-500.0,0.00012328,2]
[421631571,1778001041000,-500.0,0.00012328,2]
[421631573,1778001041000,-500.0,0.00012328,2]
[421631581,1778001041000,-533.80201252,0.00012328,2]
[421631582,1778001041000,-500.0,0.00012328,2]
[421631574,1778001041000,-500.0,0.00012328,2]
[421631575,1778001041000,-1807.07,0.00012328,2]
[421631550,1778001041000,-2338.18,0.00012328,2]
[421631559,1778001041000,-668.19,0.00012328,2]
[421631548,1778001041000,-500.0,0.00012328,2]
[421631536,1778001041000,-397.1437777,0.00012328,2]
[421631545,1778001041000,-1371.15,0.00012328,2]
[421631579,1778001041000,-500.0,0.00012328,2]
[421631523,1778001041000,-500.0,0.00012328,2]
[421631524,1778001041000,-500.0,0.00012328,2]
[421631522,1778001041000,-500.0,0.00012328,2]
[421631526,1778001041000,-500.0,0.00012328,2]
[421631521,1778001041000,-500.0,0.00012328,2]
[421631520,1778001041000,-519.45,0.00012328,2]
[421631528,1778001041000,-500.0,0.00012328,2]
[421631527,1778001041000,-351.293014,0.00012328,2]
[421631539,1778001041000,-500.0,0.00012328,2]
[421631530,1778001041000,-500.0,0.00012328,2]
[421631538,1778001041000,-500.0,0.00012328,2]
[421631531,1778001041000,-500.0,0.00012328,2]
[421631540,1778001041000,-500.0,0.00012328,2]
[421631529,1778001041000,-591.28,0.00012328,2]
[421631534,1778001041000,-500.0,0.00012328,2]
[421631533,1778001041000,-500.0,0.00012328,2]
[421631532,1778001041000,-500.0,0.00012328,2]
[421631535,1778001041000,-500.0,0.00012328,2]
[421631537,1778001041000,-767.25,0.00012328,2]
[421631542,1778001041000,-420.163174,0.00012328,2]
[421631552,1778001041000,-500.0,0.00012328,2]
[421631547,1778001041000,-500.0,0.00012328,2]
[421631541,1778001041000,-500.0,0.00012328,2]
[421631553,1778001041000,-500.0,0.00012328,2]
[421631544,1778001041000,-500.0,0.00012328,2]
[421631546,1778001041000,-500.0,0.00012328,2]
[421631543,1778001041000,-1255.81,0.00012328,2]
[421631577,1778001041000,-500.0,0.00012328,2]
[421631583,1778001041000,-500.0,0.00012328,2]
[421631626,1778001041000,-500.0,0.00012328,2]
[421631612,1778001041000,-1010.68,0.00012328,2]
[421631623,1778001041000,-500.0,0.00012328,2]
[421631618,1778001041000,-500.0,0.00012328,2]
[421631625,1778001041000,-500.0,0.00012328,2]
[421631622,1778001041000,-500.0,0.00012328,2]
[421631615,1778001041000,-500.0,0.00012328,2]
[421631616,1778001041000,-3631.25,0.00012328,2]
[421631624,1778001041000,-500.0,0.00012328,2]
[421631614,1778001041000,-500.0,0.00012328,2]
[421631619,1778001041000,-500.0,0.00012328,2]
[421631627,1778001041000,-500.0,0.00012328,2]
[421631630,1778001041000,-500.0,0.00012328,2]
[421631629,1778001041000,-668.8,0.00012328,2]
[421631631,1778001041000,-500.0,0.00012328,2]
[421631633,1778001041000,-500.0,0.00012328,2]
[421631632,1778001041000,-890.63,0.00012328,2]
[421631628,1778001041000,-500.0,0.00012328,2]
[421631634,1778001041000,-500.0,0.00012328,2]
[421631635,1778001041000,-500.0,0.00012328,2]
[421631636,1778001041000,-500.0,0.00012328,2]
[421631638,1778001041000,-500.0,0.00012328,2]
[421631640,1778001041000,-500.0,0.00012328,2]
[421631641,1778001041000,-1058.35,0.00012328,2]
[421631637,1778001041000,-500.0,0.00012328,2]
[421631642,1778001041000,-500.0,0.00012328,2]
[421631639,1778001041000,-500.0,0.00012328,2]
[421631578,1778001041000,-500.0,0.00012328,2]
[421631621,1778001041000,-500.0,0.00012328,2]
[421631620,1778001041000,-500.0,0.00012328,2]
[421631617,1778001041000,-500.0,0.00012328,2]
[421631609,1778001041000,-500.0,0.00012328,2]
[421631576,1778001041000,-500.0,0.00012328,2]
[421631584,1778001041000,-500.0,0.00012328,2]
[421631580,1778001041000,-500.0,0.00012328,2]
[421631587,1778001041000,-500.0,0.00012328,2]
[421631597,1778001041000,-500.0,0.00012328,2]
[421631598,1778001041000,-500.0,0.00012328,2]
[421631586,1778001041000,-500.0,0.00012328,2]
[421631591,1778001041000,-500.0,0.00012328,2]
[421631596,1778001041000,-11712.75440146,0.00012328,2]
[421631613,1778001041000,-500.0,0.00012328,2]